[Event "Caplin Hastings Masters 2023-24"]
[Site "Hastings"]
[Date "2023.12.30"]
[Round "3.19"]
[White "Sarkar, Justin"]
[Black "Honey, Luke Anthony"]
[Result "1-0"]
[ECO "D11"]
[WhiteElo "2272"]
[BlackElo "1907"]
[Annotator "ChessBase"]
[PlyCount "91"]
[EventDate "2023.12.18"]
[EventType "swiss"]
[EventCountry "ENG"]
[SourceTitle "playchess.com"]
[Source "ChessBase"]
[SourceQuality "1"]
[TimeControl "40/6000+30:3000+30"]

1. d4 {[%emt 0:00:51]} d5 {[%emt 0:00:08]} 2. c4 {[%emt 0:00:06]} c6 {[%emt 0:00:04]} 3. Nf3 {[%emt 0:00:16]} dxc4 {[%emt 0:00:07]} 4. e3 {[%emt 0:00:13]} Be6 {[%emt 0:00:05]} 5. a4 {[%emt 0:11:26]} Nf6 {[%emt 0:00:12]} 6. Na3 {[%emt 0:01:07]} c5 {[%emt 0:00:09]} 7. Bxc4 {[%emt 0:47:26]} Bxc4 {[%emt 0:00:16]} 8. Nxc4 {[%emt 0:00:05]} Nc6 {[%emt 0:01:12]} 9. dxc5 {[%emt 0:00:53]} Qxd1+ {[%emt 0:03:23]} 10. Kxd1 {[%emt 0:00:04]} Ne4 {[%emt 0:00:16]} 11. Ke2 {[%emt 0:00:06]} Rd8 {[%emt 0:06:15]} 12. Bd2 {[%emt 0:01:58]} e6 {[%emt 0:05:29]} 13. b4 {[%emt 0:02:52]} Nxd2 {[%emt 0:28:31]} 14. Nfxd2 {[%emt 0:00:08]} Nxb4 {[%emt 0:00:16]} 15. Ne4 {[%emt 0:00:05]} Rb8 {[%emt 0:01:58]} 16. Rab1 {[%emt 0:03:37]} Na6 {[%emt 0:07:14]} 17. c6 {[%emt 0:03:51]} bxc6 {[%emt 0:07:07]} 18. Rxb8+ {[%emt 0:00:06]} Nxb8 {[%emt 0:00:02]} 19. Rb1 {[%emt 0:00:07]} Nd7 {[%emt 0:00:15]} 20. Rb7 {[%emt 0:00:20]} a6 {[%emt 0:11:37]} 21. Ra7 {[%emt 0:01:00]} Be7 {[%emt 0:01:19]} 22. Ned6+ {[%emt 0:26:18]} Bxd6 {[%emt 0:00:14]} 23. Nxd6+ {[%emt 0:00:03]} Ke7 {[%emt 0:00:16]} 24. Nxf7 {[%emt 0:00:02]} Kxf7 {[%emt 0:00:40]} 25. Rxd7+ {[%emt 0:00:04]} Kf6 {[%emt 0:00:25]} 26. Rc7 {[%emt 0:00:05]} Rb8 {[%emt 0:07:02]} 27. Rxc6 {[%emt 0:00:06]} Rb4 {[%emt 0:02:03]} 28. Rxa6 {[%emt 0:00:27]} Rb3 {[%emt 0:00:30]} 29. a5 {[%emt 0:00:25]} Ra3 {[%emt 0:00:06]} 30. f4 {[%emt 0:00:54]} Kf7 {[%emt 0:00:58]} 31. Kf3 {[%emt 0:00:14]} h5 {[%emt 0:01:37]} 32. Ra8 {[%emt 0:00:13]} Ke7 {[%emt 0:00:56]} 33. a6 {[%emt 0:00:24]} Kf7 {[%emt 0:00:05]} 34. h3 {[%emt 0:01:34]} Kg6 {[%emt 0:01:00]} 35. a7 {[%emt 0:00:51]} Ra4 {[%emt 0:00:51]} 36. g4 {[%emt 0:01:13]} hxg4+ {[%emt 0:00:17]} 37. hxg4 {[%emt 0:00:05]} Ra5 {[%emt 0:00:57]} 38. Ke4 {[%emt 0:00:37]} Kf7 {[%emt 0:00:15]} 39. f5 {[%emt 0:00:59]} Ra4+ {[%emt 0:00:25]} 40. Ke5 {[%emt 0:00:13]} Ra5+ {[%emt 0:00:38]} 41. Kf4 {[%emt 0:50:19]} exf5 {[%emt 0:50:34]} 42. gxf5 {[%emt 0:00:05]} Ra1 {[%emt 0:00:10]} 43. e4 {[%emt 0:00:09]} Rf1+ {[%emt 0:00:20]} 44. Kg3 {[%emt 0:00:06]} Rg1+ {[%emt 0:00:31]} 45. Kf2 {[%emt 0:00:07]} Ra1 {[%emt 0:00:05]} 46. e5 {[%emt 0:01:08]} 1-0

[Event "Caplin Hastings Masters 2023-24"]
[Site "Hastings"]
[Date "2023.12.30"]
[Round "3.20"]
[White "Beaumont, Chris R"]
[Black "Teh, Wee Zhun"]
[Result "1/2-1/2"]
[ECO "D14"]
[WhiteElo "2236"]
[BlackElo "1858"]
[Annotator "RC"]
[PlyCount "119"]
[EventDate "2023.12.18"]
[EventType "swiss"]
[EventCountry "ENG"]
[SourceTitle "playchess.com"]
[Source "ChessBase"]
[SourceQuality "1"]
[TimeControl "40/6000+30:3000+30"]

1. Nf3 {[%emt 0:11:01]} d5 {[%emt 0:00:23]} 2. d4 {[%emt 0:00:11]} Nf6 {[%emt 0:00:14]} 3. c4 {[%emt 0:00:04]} c6 {[%emt 0:00:19]} 4. cxd5 {[%emt 0:00:06]} cxd5 {[%emt 0:00:20]} 5. Nc3 {[%emt 0:00:06]} Nc6 {[%emt 0:00:42]} 6. Bf4 {[%emt 0:00:09]} Bf5 {[%emt 0:00:31]} 7. Qb3 {[%emt 0:00:16]} Na5 {[%emt 0:05:01]} 8. Qa4+ {[%emt 0:03:31]} Bd7 {[%emt 0:03:29]} 9. Qc2 {[%emt 0:00:08]} a6 {[%emt 0:05:28]} 10. e3 {[%emt 0:02:01]} b5 {[%emt 0:08:16]} 11. Bd3 {[%emt 0:07:01]} e6 {[%emt 0:05:15]} 12. O-O {[%emt 0:10:20]} Be7 {[%emt 0:03:40]} 13. Rac1 {[%emt 0:23:41]} O-O {[%emt 0:12:11]} 14. Ne5 {[%emt 0:28:00]} h6 {[%emt 0:06:20]} 15. Qe2 {[%emt 0:02:37]} Nc4 {[%emt 0:17:31]} 16. e4 {[%emt 0:04:47]} Nb6 {[%emt 0:08:12]} 17. Nxd7 {[%emt 0:02:37]} Qxd7 {[%emt 0:14:08]} 18. e5 {[%emt 0:00:06]} Nh7 {[%emt 0:05:24]} 19. Qg4 {[%emt 0:02:54]} Kh8 {[%emt 0:01:21]} 20. Rce1 {[%emt 0:01:45]} Rg8 {[%emt 0:04:27]} 21. h4 {[%emt 0:03:00]} Qd8 {[%emt 0:01:22]} 22. Qh5 {[%emt 0:00:49]} Qe8 {[%emt 0:02:30]} 23. Qg4 {[%emt 0:00:44]} Qd8 {[%emt 0:00:35]} 24. g3 {[%emt 0:00:44]} Nc4 {[%emt 0:01:09]} 25. b3 {[%emt 0:00:07]} Nb6 {[%emt 0:00:25]} 26. Bd2 {[%emt 0:01:41]} Nd7 {[%emt 0:03:21]} 27. Re3 {[%emt 0:00:53]} Ndf8 {[%emt 0:00:31]} 28. f4 {[%emt 0:00:53]} f5 {[%emt 0:00:43]} 29. exf6 {[%emt 0:00:21]} Bxf6 {[%emt 0:00:39]} 30. Ne2 {[%emt 0:00:20]} Qb6 {[%emt 0:00:19]} 31. f5 {[%emt 0:00:39]} e5 {[%emt 0:00:25]} 32. dxe5 {[%emt 0:00:17]} Bxe5 {[%emt 0:00:18]} 33. Kg2 {[%emt 0:00:57]} Nf6 {[%emt 0:00:42]} 34. Qf3 {[%emt 0:00:18]} Bd4 {[%emt 0:00:43]} 35. Nxd4 {[%emt 0:01:36]} Qxd4 {[%emt 0:00:01]} 36. Re7 {[%emt 0:01:05]} Re8 {[%emt 0:00:58]} 37. Rfe1 {[%emt 0:01:15]} Rxe7 {[%emt 0:00:19]} 38. Rxe7 {[%emt 0:00:02]} N8h7 {[%emt 0:00:28]} 39. Bf4 {[%emt 0:00:32]} Re8 {[%emt 0:00:46]} 40. Be5 {[%emt 0:00:39]} Qc5 {[%emt 0:00:23]} 41. Re6 {[%emt 0:10:57]} Qc8 {[%emt 0:01:25]} 42. Rxe8+ {[%emt 0:01:00]} Qxe8 {[%emt 0:00:10]} 43. Bd4 {[%emt 0:05:00]} h5 {[%emt 0:20:59]} 44. Qf4 {[%emt 0:07:09]} Ng4 {[%emt 0:06:03]} 45. Qd6 {[%emt 0:04:48]} Nhf6 {[%emt 0:01:55]} 46. Qe6 {[%emt 0:02:23]} Qf8 {[%emt 0:03:42]} 47. Qxa6 {[%emt 0:03:25]} Qb4 {[%emt 0:02:01]} 48. Qc8+ {[%emt 0:00:09]} Kh7 {[%emt 0:00:20]} 49. Qc3 {[%emt 0:00:32]} Qa3 {[%emt 0:03:54]} 50. Qd2 {[%emt 0:11:39]} Ne4 {[%emt 0:04:43]} 51. Qe2 {[%emt 0:04:30]} Qb4 {[%emt 0:02:38]} 52. Bxe4 {[%emt 0:03:00]} dxe4 {[%emt 0:02:31]} 53. Be3 {[%emt 0:01:13]} Qf8 {[%emt 0:01:38]} 54. Bf4 {[%emt 0:01:30]} Qxf5 {[%emt 0:00:55]} 55. a4 {[%emt 0:00:01]} bxa4 {[%emt 0:00:18]} 56. bxa4 {[%emt 0:00:02]} Qd5 {[%emt 0:01:59]} 57. Qc2 {[%emt 0:02:03]} Kg8 {[%emt 0:01:32]} 58. Qd2 {[%emt 0:00:18]} Qc6 {[%emt 0:01:13]} 59. Be3 {[%emt 0:01:21]} Qxa4 {[%emt 0:00:31]} 60. Qd5+ {[%emt 0:01:48]} 1/2-1/2

[Event "Caplin Hastings Masters 2023-24"]
[Site "Hastings"]
[Date "2023.12.30"]
[Round "3.21"]
[White "Sugden, John N"]
[Black "Boswell, Jacob Connor"]
[Result "0-1"]
[ECO "B25"]
[WhiteElo "1968"]
[BlackElo "2235"]
[Annotator "RC"]
[PlyCount "94"]
[EventDate "2023.12.18"]
[EventType "swiss"]
[EventCountry "ENG"]
[SourceTitle "playchess.com"]
[Source "ChessBase"]
[SourceQuality "1"]
[TimeControl "40/6000+30:3000+30"]

1. e4 {[%emt 0:00:09]} c5 {[%emt 0:01:05]} 2. Nc3 {[%emt 0:00:27]} g6 {[%emt 0:00:09]} 3. g3 {[%emt 0:00:32]} Bg7 {[%emt 0:00:04]} 4. Bg2 {[%emt 0:00:19]} Nc6 {[%emt 0:00:11]} 5. d3 {[%emt 0:00:25]} d6 {[%emt 0:00:04]} 6. f4 {[%emt 0:00:33]} Rb8 {[%emt 0:00:32]} 7. Nf3 {[%emt 0:06:22]} b5 {[%emt 0:00:46]} 8. a3 {[%emt 0:12:14]} e6 {[%emt 0:00:49]} 9. O-O {[%emt 0:01:49]} Nge7 {[%emt 0:01:04]} 10. Rb1 {[%emt 0:07:03]} O-O {[%emt 0:06:16]} 11. Bd2 {[%emt 0:00:26]} Qb6 {[%emt 0:03:08]} 12. Kh1 {[%emt 0:02:54]} a5 {[%emt 0:04:13]} 13. a4 {[%emt 0:03:01]} b4 {[%emt 0:03:44]} 14. Nb5 {[%emt 0:01:11]} Rd8 {[%emt 0:04:48]} 15. c4 {[%emt 0:03:08]} d5 {[%emt 0:04:54]} 16. Qe2 {[%emt 0:04:08]} dxc4 {[%emt 0:09:53]} 17. dxc4 {[%emt 0:00:13]} e5 {[%emt 0:00:21]} 18. Qf2 {[%emt 0:07:29]} Be6 {[%emt 0:11:06]} 19. b3 {[%emt 0:01:59]} f6 {[%emt 0:00:46]} 20. Be3 {[%emt 0:11:46]} Nd4 {[%emt 0:00:57]} 21. Bxd4 {[%emt 0:08:25]} cxd4 {[%emt 0:01:00]} 22. Ne1 {[%emt 0:02:08]} Nc6 {[%emt 0:29:49]} 23. Nd3 {[%emt 0:01:37]} Rbc8 {[%emt 0:00:21]} 24. f5 {[%emt 0:08:59]} Bd7 {[%emt 0:10:23]} 25. g4 {[%emt 0:01:24]} Rf8 {[%emt 0:04:01]} 26. Qd2 {[%emt 0:00:39]} Nb8 {[%emt 0:01:31]} 27. Rfc1 {[%emt 0:04:57]} Na6 {[%emt 0:00:37]} 28. Ra1 {[%emt 0:03:05]} Nc5 {[%emt 0:01:19]} 29. Nxc5 {[%emt 0:00:21]} Qxc5 {[%emt 0:00:02]} 30. h3 {[%emt 0:03:19]} Rfe8 {[%emt 0:01:25]} 31. Rf1 {[%emt 0:00:49]} Rcd8 {[%emt 0:03:43]} 32. Qd3 {[%emt 0:02:01]} gxf5 {[%emt 0:01:45]} 33. gxf5 {[%emt 0:03:50]} Bh6 {[%emt 0:00:01]} 34. Bf3 {[%emt 0:01:45]} Be3 {[%emt 0:00:47]} 35. Ra2 {[%emt 0:02:18]} Kh8 {[%emt 0:00:25]} 36. Rg2 {[%emt 0:02:38]} Rg8 {[%emt 0:00:04]} 37. Bg4 {[%emt 0:00:19]} Rg5 {[%emt 0:01:06]} 38. Re1 {[%emt 0:02:44]} Rg7 {[%emt 0:03:59]} 39. Ree2 {[%emt 0:00:23]} Rdg8 {[%emt 0:00:12]} 40. Bh5 {[%emt 0:01:24]} Qc6 {[%emt 0:01:26]} 41. Bg4 {[%emt 0:18:53]} h5 {[%emt 0:05:34]} 42. Bxh5 {[%emt 0:09:32]} Bxf5 {[%emt 0:03:06]} 43. Bf3 {[%emt 0:00:54]} Bxh3 {[%emt 0:08:30]} 44. Rxg7 {[%emt 0:00:50]} Rxg7 {[%emt 0:01:13]} 45. Rxe3 {[%emt 0:03:01]} dxe3 {[%emt 0:01:21]} 46. Qxe3 {[%emt 0:00:18]} f5 {[%emt 0:02:59]} 47. Qd2 {[%emt 0:10:34]} Qf6 {[%emt 0:02:56]} 0-1

[Event "Caplin Hastings Masters 2023-24"]
[Site "Hastings"]
[Date "2023.12.30"]
[Round "3.22"]
[White "Villiers, Thomas"]
[Black "Boggarapu, Kritan"]
[Result "1-0"]
[ECO "B23"]
[WhiteElo "2230"]
[BlackElo "1857"]
[Annotator "ChessBase"]
[PlyCount "43"]
[EventDate "2023.12.18"]
[EventType "swiss"]
[EventCountry "ENG"]
[SourceTitle "playchess.com"]
[Source "ChessBase"]
[SourceQuality "1"]
[TimeControl "40/6000+30:3000+30"]

1. e4 {[%emt 0:00:04]} c5 {[%emt 0:00:04]} 2. Nc3 {[%emt 0:00:18]} d6 {[%emt 0:00:12]} 3. f4 {[%emt 0:00:07]} Nc6 {[%emt 0:00:17]} 4. Nf3 {[%emt 0:00:06]} e6 {[%emt 0:01:25]} 5. Bc4 {[%emt 0:01:15]} Nf6 {[%emt 0:00:25]} 6. d3 {[%emt 0:01:28]} a6 {[%emt 0:02:50]} 7. a4 {[%emt 0:01:17]} d5 {[%emt 0:01:07]} 8. Ba2 {[%emt 0:00:15]} Be7 {[%emt 0:03:56]} 9. O-O {[%emt 0:00:18]} O-O {[%emt 0:01:31]} 10. Qe1 {[%emt 0:01:10]} Re8 {[%emt 0:19:21]} 11. e5 {[%emt 0:03:59]} Nd7 {[%emt 0:00:16]} 12. Qg3 {[%emt 0:00:36]} f6 {[%emt 0:07:19]} 13. Bd2 {[%emt 0:11:50]} Rb8 {[%emt 0:12:50]} 14. Rae1 {[%emt 0:02:22]} Qc7 {[%emt 0:01:09]} 15. f5 {[%emt 0:06:50]} Ndxe5 {[%emt 0:05:19]} 16. fxe6 {[%emt 0:02:10]} Bxe6 {[%emt 0:05:08]} 17. Nxd5 {[%emt 0:00:32]} Qd8 {[%emt 0:21:29]} 18. Bh6 {[%emt 0:05:02]} g6 {[%emt 0:03:29]} 19. Nxe5 {[%emt 0:01:08]} Nxe5 {[%emt 0:04:50]} 20. Rxe5 {[%emt 0:00:12]} Bd6 {[%emt 0:08:22]} 21. Nxf6+ {[%emt 0:00:26]} Kh8 {[%emt 0:00:46]} 22. Nxe8 {[%emt 0:00:34]} 1-0

[Event "Caplin Hastings Masters 2023-24"]
[Site "Hastings"]
[Date "2023.12.30"]
[Round "3.23"]
[White "Juknis, Paulius"]
[Black "Byrn, Carsten"]
[Result "1-0"]
[ECO "A16"]
[WhiteElo "2148"]
[BlackElo "1823"]
[Annotator "NA"]
[PlyCount "67"]
[EventDate "2023.12.18"]
[EventType "swiss"]
[EventCountry "ENG"]
[SourceTitle "playchess.com"]
[Source "ChessBase"]
[SourceQuality "1"]
[TimeControl "40/6000+30:3000+30"]

1. c4 {[%emt 0:00:11]} Nf6 {[%emt 0:00:05]} 2. g3 {[%emt 0:00:34]} d5 {[%emt 0:00:04]} 3. cxd5 {[%emt 0:00:16]} Nxd5 {[%emt 0:00:12]} 4. Bg2 {[%emt 0:00:48]} g6 {[%emt 0:00:11]} 5. Nc3 {[%emt 0:00:22]} Nxc3 {[%emt 0:00:11]} 6. bxc3 {[%emt 0:00:27]} Bg7 {[%emt 0:00:10]} 7. Rb1 {[%emt 0:00:53]} O-O {[%emt 0:00:25]} 8. Rxb7 {[%emt 0:00:51]} Bxb7 {[%emt 0:01:32]} 9. Bxb7 {[%emt 0:00:03]} Nd7 {[%emt 0:00:42]} 10. Bxa8 {[%emt 0:00:37]} Qxa8 {[%emt 0:00:15]} 11. Nf3 {[%emt 0:05:29]} Ne5 {[%emt 0:05:13]} 12. O-O {[%emt 0:03:21]} Nxf3+ {[%emt 0:00:22]} 13. exf3 {[%emt 0:00:04]} Rd8 {[%emt 0:00:23]} 14. Qe2 {[%emt 0:05:50]} e5 {[%emt 0:02:32]} 15. d3 {[%emt 0:01:57]} Qd5 {[%emt 0:01:28]} 16. Rd1 {[%emt 0:00:11]} c5 {[%emt 0:01:00]} 17. c4 {[%emt 0:00:55]} Qc6 {[%emt 0:02:56]} 18. Be3 {[%emt 0:12:19]} f5 {[%emt 0:09:27]} 19. Rb1 {[%emt 0:02:46]} a6 {[%emt 0:03:38]} 20. Rb3 {[%emt 0:06:33]} Qd6 {[%emt 0:13:57]} 21. Kg2 {[%emt 0:05:37]} h6 {[%emt 0:06:19]} 22. Qe1 {[%emt 0:02:10]} g5 {[%emt 0:01:20]} 23. Qa5 {[%emt 0:00:23]} Rc8 {[%emt 0:04:30]} 24. Rb6 {[%emt 0:07:18]} Qxd3 {[%emt 0:01:57]} 25. Qxa6 {[%emt 0:00:51]} Rd8 {[%emt 0:01:15]} 26. Rb3 {[%emt 0:02:44]} Qc2 {[%emt 0:10:25]} 27. Qe6+ {[%emt 0:00:44]} Kh8 {[%emt 0:03:00]} 28. Rb7 {[%emt 0:01:39]} g4 {[%emt 0:03:28]} 29. Rxg7 {[%emt 0:00:54]} gxf3+ {[%emt 0:00:29]} 30. Kh3 {[%emt 0:00:07]} Kxg7 {[%emt 0:00:52]} 31. Qe7+ {[%emt 0:00:31]} Kg6 {[%emt 0:01:02]} 32. Qxd8 {[%emt 0:01:18]} Qxc4 {[%emt 0:01:19]} 33. Qb6+ {[%emt 0:00:52]} Kf7 {[%emt 0:01:05]} 34. Qb3 {[%emt 0:00:37]} 1-0

[Event "Caplin Hastings Masters 2023-24"]
[Site "Hastings"]
[Date "2023.12.30"]
[Round "3.24"]
[White "Hobson, Kenneth"]
[Black "Gibbs, Dominic V"]
[Result "1-0"]
[ECO "C10"]
[WhiteElo "2130"]
[BlackElo "1795"]
[Annotator "NA"]
[PlyCount "59"]
[EventDate "2023.12.18"]
[EventType "swiss"]
[EventCountry "ENG"]
[SourceTitle "playchess.com"]
[Source "ChessBase"]
[SourceQuality "1"]
[TimeControl "40/6000+30:3000+30"]

1. e4 {[%emt 0:02:36]} e6 {[%emt 0:00:08]} 2. d4 {[%emt 0:01:02]} d5 {[%emt 0:00:11]} 3. Nc3 {[%emt 0:00:57]} dxe4 {[%emt 0:00:19]} 4. Nxe4 {[%emt 0:00:09]} Nd7 {[%emt 0:00:07]} 5. Nf3 {[%emt 0:03:18]} Ngf6 {[%emt 0:00:11]} 6. Bd3 {[%emt 0:01:21]} Nxe4 {[%emt 0:02:33]} 7. Bxe4 {[%emt 0:00:07]} Nf6 {[%emt 0:00:09]} 8. Bg5 {[%emt 0:01:38]} Be7 {[%emt 0:00:40]} 9. Bxf6 {[%emt 0:02:02]} gxf6 {[%emt 0:02:38]} 10. Qe2 {[%emt 0:06:14]} O-O {[%emt 0:05:41]} 11. O-O-O {[%emt 0:04:12]} c5 {[%emt 0:05:19]} 12. g4 {[%emt 0:15:27]} Qc7 {[%emt 0:05:11]} 13. Kb1 {[%emt 0:02:57]} cxd4 {[%emt 0:09:13]} 14. Nxd4 {[%emt 0:01:40]} Bd7 {[%emt 0:00:53]} 15. Qd3 {[%emt 0:05:56]} h6 {[%emt 0:07:06]} 16. h4 {[%emt 0:03:51]} Bc6 {[%emt 0:09:20]} 17. Bxc6 {[%emt 0:04:37]} bxc6 {[%emt 0:00:16]} 18. g5 {[%emt 0:02:19]} Rfd8 {[%emt 0:12:48]} 19. g6 {[%emt 0:04:13]} f5 {[%emt 0:02:09]} 20. gxf7+ {[%emt 0:00:51]} Kxf7 {[%emt 0:01:14]} 21. Qe2 {[%emt 0:00:45]} Rxd4 {[%emt 0:11:21]} 22. Qh5+ {[%emt 0:00:29]} Kf8 {[%emt 0:05:41]} 23. Qxh6+ {[%emt 0:00:56]} Kf7 {[%emt 0:00:56]} 24. Qh7+ {[%emt 0:00:27]} Kf6 {[%emt 0:05:32]} 25. Rxd4 {[%emt 0:01:06]} Rb8 {[%emt 0:08:24]} 26. b3 {[%emt 0:01:47]} c5 {[%emt 0:04:06]} 27. Rg1 {[%emt 0:01:02]} Bd6 {[%emt 0:07:14]} 28. Qh6+ {[%emt 0:00:15]} Ke5 {[%emt 0:01:16]} 29. Re1+ {[%emt 0:00:14]} Kxd4 {[%emt 0:00:21]} 30. Qd2# {[%emt 0:00:06]} 1-0

[Event "Caplin Hastings Masters 2023-24"]
[Site "Hastings"]
[Date "2023.12.30"]
[Round "3.25"]
[White "Rami, Talab"]
[Black "Ismail, Mohammed Aayan"]
[Result "1-0"]
[ECO "B15"]
[WhiteElo "1947"]
[BlackElo "2115"]
[Annotator "RC"]
[PlyCount "123"]
[EventDate "2023.12.18"]
[EventType "swiss"]
[EventCountry "ENG"]
[SourceTitle "playchess.com"]
[Source "ChessBase"]
[SourceQuality "1"]
[TimeControl "40/6000+30:3000+30"]

1. e4 {[%emt 0:00:03]} c6 {[%emt 0:02:20]} 2. Nf3 {[%emt 0:00:12]} d5 {[%emt 0:00:16]} 3. Nc3 {[%emt 0:00:11]} dxe4 {[%emt 0:00:04]} 4. Nxe4 {[%emt 0:00:07]} Nf6 {[%emt 0:00:04]} 5. Nxf6+ {[%emt 0:00:16]} exf6 {[%emt 0:00:04]} 6. d4 {[%emt 0:00:24]} Bd6 {[%emt 0:00:22]} 7. Be2 {[%emt 0:00:28]} O-O {[%emt 0:00:44]} 8. O-O {[%emt 0:00:15]} Be6 {[%emt 0:12:14]} 9. Be3 {[%emt 0:00:51]} a5 {[%emt 0:10:35]} 10. c4 {[%emt 0:05:04]} Na6 {[%emt 0:02:46]} 11. Re1 {[%emt 0:03:03]} Nc7 {[%emt 0:03:08]} 12. Qc2 {[%emt 0:03:46]} g6 {[%emt 0:09:39]} 13. Rad1 {[%emt 0:04:15]} Re8 {[%emt 0:05:19]} 14. h3 {[%emt 0:06:29]} a4 {[%emt 0:09:44]} 15. Bf1 {[%emt 0:07:49]} Bf5 {[%emt 0:09:16]} 16. Qc3 {[%emt 0:04:04]} b5 {[%emt 0:09:49]} 17. d5 {[%emt 0:09:04]} b4 {[%emt 0:00:53]} 18. Qd2 {[%emt 0:01:04]} c5 {[%emt 0:00:46]} 19. Bd3 {[%emt 0:04:16]} Qd7 {[%emt 0:03:02]} 20. Nh4 {[%emt 0:11:27]} Bxd3 {[%emt 0:01:37]} 21. Qxd3 {[%emt 0:00:16]} f5 {[%emt 0:02:27]} 22. f4 {[%emt 0:02:32]} Re4 {[%emt 0:01:47]} 23. Nf3 {[%emt 0:00:41]} f6 {[%emt 0:02:11]} 24. Nd2 {[%emt 0:04:03]} Re7 {[%emt 0:00:20]} 25. Qf1 {[%emt 0:01:24]} Rae8 {[%emt 0:00:48]} 26. Qf2 {[%emt 0:00:48]} Na8 {[%emt 0:00:20]} 27. Qf3 {[%emt 0:06:37]} Nb6 {[%emt 0:03:02]} 28. Bf2 {[%emt 0:00:28]} Kg7 {[%emt 0:05:12]} 29. Kf1 {[%emt 0:03:47]} h6 {[%emt 0:00:59]} 30. Rxe7+ {[%emt 0:02:09]} Rxe7 {[%emt 0:00:09]} 31. Re1 {[%emt 0:00:51]} Rxe1+ {[%emt 0:00:15]} 32. Kxe1 {[%emt 0:00:33]} g5 {[%emt 0:01:24]} 33. Be3 {[%emt 0:01:35]} Kg6 {[%emt 0:01:02]} 34. g3 {[%emt 0:02:09]} h5 {[%emt 0:06:03]} 35. Qf2 {[%emt 0:09:11]} Qe7 {[%emt 0:01:09]} 36. Kf1 {[%emt 0:01:09]} Nd7 {[%emt 0:05:08]} 37. b3 {[%emt 0:01:25]} axb3 {[%emt 0:00:22]} 38. axb3 {[%emt 0:00:20]} Qe8 {[%emt 0:01:11]} 39. Nf3 {[%emt 0:00:56]} Qe4 {[%emt 0:02:38]} 40. fxg5 {[%emt 0:00:47]} fxg5 {[%emt 0:00:28]} 41. Bxg5 {[%emt 0:54:55]} Ne5 {[%emt 0:05:28]} 42. Nxe5+ {[%emt 0:00:00]} Bxe5 {[%emt 0:00:19]} 43. Qe3 {[%emt 0:00:00]} Qb1+ {[%emt 0:04:45]} 44. Kg2 {[%emt 0:00:00]} Qb2+ {[%emt 0:11:01]} 45. Kf3 {[%emt 0:00:00]} Qa1 {[%emt 0:01:23]} 46. Kg2 {[%emt 0:00:00]} Qa2+ {[%emt 0:02:54]} 47. Kf3 {[%emt 0:00:00]} Qa1 {[%emt 0:03:37]} 48. Kg2 {[%emt 0:00:00]} Qc3 {[%emt 0:16:08]} 49. Bf4 {[%emt 0:00:00]} Qc2+ {[%emt 0:05:15]} 50. Qd2 {[%emt 0:00:00]} Qe4+ {[%emt 0:00:12]} 51. Kh2 {[%emt 0:00:00]} Bd4 {[%emt 0:03:05]} 52. d6 {[%emt 0:00:00]} Kf7 {[%emt 0:00:40]} 53. Qg2 {[%emt 0:00:00]} Qe1 {[%emt 0:01:17]} 54. Bg5 {[%emt 0:03:08]} Ke6 {[%emt 0:01:14]} 55. d7 {[%emt 0:05:16]} Kxd7 {[%emt 0:00:21]} 56. Qd5+ {[%emt 0:00:05]} Ke8 {[%emt 0:00:21]} 57. Qg8+ {[%emt 0:00:09]} Kd7 {[%emt 0:00:05]} 58. Qd8+ {[%emt 0:00:06]} Kc6 {[%emt 0:00:08]} 59. Qd5+ {[%emt 0:00:09]} Kc7 {[%emt 0:00:14]} 60. Bf4+ {[%emt 0:00:10]} Kc8 {[%emt 0:00:12]} 61. Qc6+ {[%emt 0:00:06]} Kd8 {[%emt 0:00:04]} 62. Bg5+ {[%emt 0:00:04]} 1-0

[Event "Caplin Hastings Masters 2023-24"]
[Site "Hastings"]
[Date "2023.12.30"]
[Round "3.26"]
[White "Bai, Xue"]
[Black "Howell, Oliver W"]
[Result "1-0"]
[ECO "C18"]
[WhiteElo "2099"]
[BlackElo "1782"]
[Annotator "NA"]
[PlyCount "49"]
[EventDate "2023.12.18"]
[EventType "swiss"]
[EventCountry "ENG"]
[SourceTitle "playchess.com"]
[Source "ChessBase"]
[SourceQuality "1"]
[TimeControl "40/6000+30:3000+30"]

1. e4 {[%emt 0:00:04]} e6 {[%emt 0:00:05]} 2. d4 {[%emt 0:00:04]} d5 {[%emt 0:00:04]} 3. Nc3 {[%emt 0:00:05]} Bb4 {[%emt 0:00:07]} 4. e5 {[%emt 0:00:09]} Ne7 {[%emt 0:00:11]} 5. a3 {[%emt 0:00:07]} Bxc3+ {[%emt 0:00:06]} 6. bxc3 {[%emt 0:00:05]} c5 {[%emt 0:00:04]} 7. Qg4 {[%emt 0:00:09]} Qc7 {[%emt 0:00:12]} 8. Qxg7 {[%emt 0:00:23]} Rg8 {[%emt 0:00:08]} 9. Qxh7 {[%emt 0:00:07]} cxd4 {[%emt 0:00:17]} 10. Ne2 {[%emt 0:00:14]} Nbc6 {[%emt 0:01:04]} 11. f4 {[%emt 0:00:18]} dxc3 {[%emt 0:00:25]} 12. Nxc3 {[%emt 0:00:12]} Bd7 {[%emt 0:05:36]} 13. Nb5 {[%emt 0:00:42]} Qb6 {[%emt 0:03:01]} 14. Nd6+ {[%emt 0:00:20]} Kd8 {[%emt 0:00:11]} 15. c3 {[%emt 0:00:26]} Na5 {[%emt 0:06:47]} 16. Rb1 {[%emt 0:02:56]} Qc6 {[%emt 0:03:41]} 17. Nxf7+ {[%emt 0:02:25]} Kc7 {[%emt 0:02:42]} 18. Nd6 {[%emt 0:00:33]} Qa4 {[%emt 0:13:01]} 19. Rb4 {[%emt 0:01:51]} Qc6 {[%emt 0:01:26]} 20. Qxe7 {[%emt 0:03:49]} Qxc3+ {[%emt 0:04:15]} 21. Bd2 {[%emt 0:00:07]} Qa1+ {[%emt 0:01:27]} 22. Kf2 {[%emt 0:00:09]} Rad8 {[%emt 0:03:43]} 23. Nb5+ {[%emt 0:00:53]} Kc8 {[%emt 0:00:34]} 24. Qc5+ {[%emt 0:00:32]} Bc6 {[%emt 0:00:42]} 25. Nxa7+ {[%emt 0:00:18]} 1-0